Cogmind - Beta 17.1 @@@ ROGUE MODE // 2026.08.25 @ 18:59:07 Player: TheSkyeDoctor Result: Destroyed by 6X-NI5(E) with Barrage Gun Performance ------------- Evolutions (1) 500 Regions Visited (6) 1200 Robots Destroyed (27) 135 Value Destroyed (634) 634 Prototype IDs (10) 200 Alien Tech Used (0) 0 Bonus (878) 878 TOTAL SCORE: 3547 Bonus ------- Follower Combat Kills 81 Registered with UFD 300 Met Optimus in HQ 500 Friendly Fire -3 Cogmind --------- Core Integrity 0/400 Matter 300/300 Energy 125/125 System Corruption 0% Temperature Cool (16) Movement Rolling (115) Ox1 Location -9/Scraptown Parts ------- > --- POWER (1) -------- Light Ion Engine > --- PROPULSION (4) --- Compact Wheel > --- UTILITY (2) ------ Large Storage Unit A0-MCA's Component Scanner > --- WEAPON (2) ------- Power Sword > --- INVENTORY (15) --- Scrap Suit Improved Heat Sink High-capacity Matter Pod (200) Enhanced Optical Array Terrain Scan Processor Seismic Detector Scrapoid Pod Rocket Launcher Rocket Launcher Junk Cannon (0) Mace Botcube Peak State ------------ > --- POWER ------------ Light Ion Engine > --- PROPULSION ------- Compact Wheel Compact Wheel > --- UTILITY ---------- Large Storage Unit A0-MCA's Component Scanner > --- WEAPON ----------- Improved Grenade Launcher Power Sword > --- INVENTORY -------- Improved Heat Sink High-capacity Matter Pod Enhanced Optical Array Terrain Scan Processor Seismic Detector Scrapoid Pod Rocket Launcher Rocket Launcher Junk Cannon Mace Botcube [Rating: 26] Favorites ----------- Power Light Ion Engine Engine Light Ion Engine Propulsion Wheel Wheel Wheel Flight Unit VTOL Module Utility Seismic Detector Device Seismic Detector Storage Large Storage Unit Processor A0-MCA's Component Scanner Protection Medium Armor Plating Weapon Assault Rifle Energy Gun EM Pulse Gun Ballistic Gun Assault Rifle Launcher Improved Grenade Launcher Slashing Weapon Power Sword Build | -11 -10 -10 -9 -9 -9 -9 ------- Run | Yrd Mat Min Mat Sto Rec Scr Slots Evolved 2 | . . . 2 . . . Power . | . . . . . . . Propulsion 2 | . . . 2 . . . Utility . | . . . . . . . Weapon . | . . . . . . . Parts Attached 30 | 7 1 2 9 3 . 8 Power 3 | 1 . . 1 . . 1 Engine 3 | 1 . . 1 . . 1 Core . | . . . . . . . Reactor . | . . . . . . . Propulsion 9 | 2 . 1 4 . . 2 Treads . | . . . . . . . Leg . | . . . . . . . Wheel 5 | 2 . 1 . . . 2 Hover . | . . . . . . . Flight 4 | . . . 4 . . . Utility 9 | 2 1 1 . 2 . 3 Device 1 | 1 . . . . . . Storage 6 | 1 1 1 . 1 . 2 Processor 1 | . . . . . . 1 Hackware . | . . . . . . . Protection 1 | . . . . 1 . . Artifact . | . . . . . . . Weapon 9 | 2 . . 4 1 . 2 Energy Gun 3 | . . . 3 . . . Energy Cannon . | . . . . . . . Ballistic Gun 2 | 2 . . . . . . Ballistic Cannon . | . . . . . . . Launcher 3 | . . . 1 1 . 1 Special Weapon . | . . . . . . . Impact Weapon . | . . . . . . . Slashing Weapon 1 | . . . . . . 1 Piercing Weapon . | . . . . . . . Special Melee Weapon . | . . . . . . . Unidentified Prototypes 1 | . . . 1 . . . Parts Lost 16 | . . 2 5 5 2 2 Power 2 | . . . 1 . 1 . Propulsion 7 | . . 1 2 2 1 1 Utility 1 | . . . . 1 . . Weapon 6 | . . 1 2 2 . 1 Highest Loss Streak 6 | . . 1 5 4 6 2 To Critical Strikes . | . . . . . . . Average Backups 9 | 2 8 14 12 5 5 8 Power . | . 1 1 . . . . Propulsion 2 | . 3 6 4 . . . Utility 2 | . . 1 1 1 2 4 Weapon 3 | . 2 6 5 3 3 3 Tool/Special . | . . . . . . . Unused Backups 13 | 1 . . 3 . . 9 Power . | . . . . . . . Propulsion 3 | 1 . . 2 . . . Utility 4 | . . . . . . 4 Weapon 5 | . . . 1 . . 4 Tool/Special 1 | . . . . . . 1 Average Slot Usage (%) 74 | . 99 98 69 71 19 63 Engine 11 | . 14 14 9 11 2 10 Wheel 16 | . 28 28 15 . . 12 Flight 2 | . . . 6 29 5 . Device 9 | . 14 14 11 11 11 5 Storage 10 | . 14 14 9 . . 10 Processor 2 | . . . . . . 5 Energy Gun 1 | . . . 9 5 . . Ballistic Gun 9 | . 27 26 7 . . . Launcher 4 | . . . . 7 . 9 Slashing Weapon 4 | . . . . . . 9 Peak Build Rating 26 | 7 9 9 15 15 4 26 Average Rating 12 | 5 7 8 9 11 2 17 On Entrance 6 | . 7 9 8 13 4 1 Avg Prop Armor Cover (%) . | . . . . . . . Naked Turns . | . . . . . . . Heaviest Build 90 | 14 89 89 90 18 4 33 Greatest Support 32 | 20 20 20 20 12 4 32 Greatest Overweight (x) 8 | . 4 4 8 1 . 2 Average Overweight (x) 1 | . 1 4 2 . . 1 Largest Inventory Capacity 25 | 8 25 25 25 5 5 15 Average Capacity 15 | 7 14 25 22 5 5 14 Most Carried 16 | 5 15 16 14 5 5 15 Average Carried 9 | 2 8 14 12 4 5 9 Final Capacity 25 | 8 25 25 5 5 5 15 Final Carried 15 | 5 15 14 5 5 5 15 Class Distribution -------------------- 98% | Mutant Dominant Class ---------------- Mutant | -10/Materials Mutant | -10/Mines Mutant | -9/Materials Mutant | -9/Storage Mutant | -9/Recycling Mutant | -9/Scraptown Resources | -11 -10 -10 -9 -9 -9 -9 ----------- Run | Yrd Mat Min Mat Sto Rec Scr Matter Collected 968 | 325 41 99 37 300 60 106 Remotely . | . . . . . . . Salvage Created 821 | 162 61 75 233 195 . 95 Parts 44 | 12 3 6 6 9 . 8 Haulers Intercepted 2 | . . . 2 . . . Recyclers Shooed . | . . . . . . . Parts Field Recycled . | . . . . . . . Retrieved Matter . | . . . . . . . Parts Self-Destructed . | . . . . . . . Prevented . | . . . . . . . Parts Restored . | . . . . . . . Kills | -11 -10 -10 -9 -9 -9 -9 ------- Run | Yrd Mat Min Mat Sto Rec Scr Combat Hostiles Destroyed 13 | . 1 3 3 4 . 2 Guns 5 | . 1 3 1 . . . AOE 8 | . . . 2 4 . 2 Classes Destroyed 13 | 3 2 1 2 3 . 2 Worker 1 | 1 . . . . . . Tunneler 4 | 4 . . . . . . Hauler 2 | . . . 2 . . . Recycler 3 | 1 . . . 2 . . Mechanic 1 | . . . . 1 . . Operator 1 | . . . . 1 . . Watcher 2 | . 1 . . 1 . . Swarmer 2 | . . 2 . . . . Grunt 5 | . 1 1 2 1 . . Duelist 1 | . . . . 1 . . Sentry 3 | . . . 1 2 . . Ranger 1 | . . . . . . 1 Scrapper 1 | . . . . . . 1 Best Kill Streak 8 | 3 1 2 3 8 . 2 Combat Bots Only 4 | . 1 2 3 4 . 2 Max Kills in Single Turn 2 | 1 1 1 1 2 . 2 Gunslinging . | . . . . . . . Exploded 2 | . . . 1 1 . 2 Melee . | . . . . . . . Uniques/NPCs Destroyed . | . . . . . . . Combat | -11 -10 -10 -9 -9 -9 -9 -------- Run | Yrd Mat Min Mat Sto Rec Scr Hostile Shots Fired 117 | . 5 28 24 22 29 9 Missed 40 | . 2 7 10 6 14 1 Hits 77 | . 3 21 14 16 15 8 Projectile 77 | . 3 21 14 16 15 8 Critical Strikes 5 | . . 1 . . 1 3 Damage Taken 1415 | . 44 258 317 418 158 220 Core 462 | . 17 31 77 96 124 117 Absorbed by Shields . | . . . . . . . Core Remaining (%) 90 | 100 . 80 . . . . Volleys Fired 78 | 16 12 11 23 14 . 2 Largest 2 | 2 2 2 2 2 . 1 Hottest 96 | 40 40 40 73 96 . 36 Shots Fired 133 | 32 24 21 38 16 . 2 Gun 115 | 32 24 21 34 4 . . Cannon . | . . . . . . . Launcher 18 | . . . 4 12 . 2 Special . | . . . . . . . Kinetic 89 | 32 24 21 12 . . . Thermal 2 | . . . . 2 . . Explosive 18 | . . . 4 12 . 2 Electromagnetic 24 | . . . 22 2 . . Robot Hit Streak 11 | 4 10 4 5 9 . 11 Robot Miss Streak 4 | 4 2 2 2 3 . . Penetration Max . | . . . . . . . Secondary Targets 1 | . . 1 . . . . Max Gunslinging Chain 1 | . . 1 . . . . Shots Hit Robots 86 | 16 17 13 25 12 . 3 Core Hits 52 | 9 5 8 10 16 . 4 Critical Kills . | . . . . . . . Critical Parts Destroyed 2 | 1 1 . . . . . Critical Strikes 3 | 1 1 . . . . 1 Destroy 2 | 1 1 . . . . . Sever 1 | . . . . . . 1 Melee Attacks 2 | . . . . . . 2 Impact . | . . . . . . . Slashing 2 | . . . . . . 2 Piercing . | . . . . . . . Sneak Attacks . | . . . . . . . Combat Hostiles . | . . . . . . . Follow-up Attacks . | . . . . . . . Damage Inflicted 1858 | 171 189 137 498 676 . 187 Guns 832 | 171 189 137 302 33 . . Cannons . | . . . . . . . Explosions 993 | . . . 196 643 . 154 Melee 33 | . . . . . . 33 Ramming . | . . . . . . . Kinetic 588 | 171 189 137 91 . . . Thermal 96 | . . . 41 55 . . Explosive 915 | . . . 155 606 . 154 Electromagnetic 226 | . . . 211 15 . . Impact . | . . . . . . . Slashing 33 | . . . . . . 33 Piercing . | . . . . . . . Highest Corruption . | . . . . . . . Average Corruption . | . . . . . . . Corruption Purged . | . . . . . . . Corruption Blocked . | . . . . . . . Overload Shots . | . . . . . . . Overflow Damage 34 | . . . 19 15 . . Projectiles . | . . . . . . . Explosions 34 | . . . 19 15 . . Melee . | . . . . . . . Knockbacks . | . . . . . . . Impact . | . . . . . . . Kinetic . | . . . . . . . Secondary . | . . . . . . . Self-Inflicted Damage 377 | . . . 128 197 . 52 Shots 13 | . . . 3 8 . 2 Rammed 1 | . 1 . . . . . Targets Rammed 1 | . 1 . . . . . Kicked . | . . . . . . . Crushed . | . . . . . . . Highest Temperature 87 | . 9 52 11 87 . 46 Average Temperature 21 | . 9 23 4 26 . 31 Received Heat Transfer 449 | . 24 132 75 78 18 122 Siege Activations . | . . . . . . . Martial Activations . | . . . . . . . Shielding Activations . | . . . . . . . Robots Disrupted . | . . . . . . . Combat Hostiles . | . . . . . . . Robots Corrupted . | . . . . . . . Combat Hostiles . | . . . . . . . Parts Fried 1 | . . . 1 . . . Impact Corruptions . | . . . . . . . Robots Melted . | . . . . . . . Combat Hostiles . | . . . . . . . Parts Melted . | . . . . . . . Heat Transferred 87 | . . . 50 37 . . Parts Sabotaged . | . . . . . . . Parts Stolen . | . . . . . . . Parts Stripped . | . . . . . . . Power Chain Reactions 2 | . . . 1 1 . . Alert | -11 -10 -10 -9 -9 -9 -9 ------- Run | Yrd Mat Min Mat Sto Rec Scr Maximum Alert Level . | . . . . . . . Low Security (%) 100 | 100 100 100 100 100 100 . Level 1 . | . . . . . . . Level 2 . | . . . . . . . Level 3 . | . . . . . . . Level 4 . | . . . . . . . Level 5 . | . . . . . . . High Security . | . . . . . . . Max Security . | . . . . . . . Peak Influence 158 | 10 25 56 109 158 88 . Initial 53 | . . . 10 33 53 . Average 21 | 1 3 9 61 46 35 . Influence Increases 796 | 30 52 109 275 225 105 . Destroy 0b10 Robot/C 320 | . 20 80 140 80 . . Destroy 0b10 Robot/NC 85 | 30 5 . 25 25 . . Destroy Leader 104 | . 12 20 40 32 . . Allied During Kill 31 | . . 9 22 . . . Successful Hack 17 | . . . . 17 . . Disable Machine 45 | . . . 15 30 . . Destroy Structure 74 | . . . 33 41 . . Partial Spotted 15 | . . . . . 15 . Lose Combat Pursuer 105 | . 15 . . . 90 . Influence Decreases 796 | 30 52 82 223 166 155 88 Entered New Map 236 | . . . 17 46 85 88 Time Decay 354 | 30 52 52 100 70 50 . Lost Part 130 | . . 10 50 50 20 . Lost Ally 76 | . . 20 56 . . . Squads Dispatched 3 | . 1 . 1 1 . . Investigation 1 | . . . . 1 . . Extermination . | . . . . . . . Reinforcement 2 | . 1 . 1 . . . Assault . | . . . . . . . Garrison . | . . . . . . . Intercept . | . . . . . . . Searches Triggered . | . . . . . . . Construction Impeded . | . . . . . . . Haulers Reinforced . | . . . . . . . Active Scanning Responses . | . . . . . . . Cargo Convoy Interrupts . | . . . . . . . Stealth | -11 -10 -10 -9 -9 -9 -9 --------- Run | Yrd Mat Min Mat Sto Rec Scr Distress Signals 4 | . . . 3 1 . . Communications Jammed . | . . . . . . . Distress Signals . | . . . . . . . Times Spotted 44 | . 5 4 9 11 8 7 Peak Tracking Total 6 | . 2 2 4 5 6 3 Tactical Retreats 3 | . 1 . . . 2 . Traps | -11 -10 -10 -9 -9 -9 -9 ------- Run | Yrd Mat Min Mat Sto Rec Scr Traps Triggered 1 | . 1 . . . . . Indirectly . | . . . . . . . Trap Hack Attempts . | . . . . . . . Triggered . | . . . . . . . Disarmed . | . . . . . . . Reprogrammed . | . . . . . . . Reused . | . . . . . . . Traps Extracted . | . . . . . . . Installed . | . . . . . . . Triggered . | . . . . . . . Machines | -11 -10 -10 -9 -9 -9 -9 ---------- Run | Yrd Mat Min Mat Sto Rec Scr Machines Disabled 4 | . . . 1 2 . 1 Max in Single Turn 1 | . . . . 1 . 1 Machines Repaired . | . . . . . . . Machines Dismantled . | . . . . . . . Machines Sabotaged . | . . . . . . . Overloaded Fab Kills . | . . . . . . . Hacking | -11 -10 -10 -9 -9 -9 -9 --------- Run | Yrd Mat Min Mat Sto Rec Scr Machines Accessed 8 | . 1 . 1 5 . 1 Terminals 7 | . 1 . 1 5 . . Fabricators . | . . . . . . . Repair Stations . | . . . . . . . Recycling Units . | . . . . . . . Scanalyzers . | . . . . . . . Garrison Access . | . . . . . . . Total Hacks 14 | . 1 . 1 11 . 1 Successful 7 | . . . . 6 . 1 Failed 7 | . 1 . 1 5 . . Catastrophic 1 | . . . 1 . . . Database Lockouts . | . . . . . . . Manual 14 | . 1 . 1 12 . . Terminals 13 | . 1 . 1 11 . . Fabricators . | . . . . . . . Repair Stations . | . . . . . . . Recycling Units . | . . . . . . . Scanalyzers . | . . . . . . . Garrison Access . | . . . . . . . Terminal Hacks 2 | . . . . 1 . 1 Record 1 | . . . . . . 1 Open Door 1 | . . . . 1 . . Fabricator Hacks . | . . . . . . . Repair Station Hacks . | . . . . . . . Recycling Unit Hacks . | . . . . . . . Scanalyzer . | . . . . . . . Garrison Access Hacks . | . . . . . . . Unauthorized Hacks 5 | . . . . 5 . . Terminals 5 | . . . . 5 . . Assimilate 2 | . . . . 2 . . Botnet 3 | . . . . 3 . . Fabricators . | . . . . . . . Repair Stations . | . . . . . . . Recycling Units . | . . . . . . . Scanalyzers . | . . . . . . . Garrison Access . | . . . . . . . Data Cores Recovered 1 | . . . . 1 . . Used 1 | . . . . 1 . . Hacking Detections 5 | . 1 . 1 3 . . Full Trace Events 1 | . . . . 1 . . Feedback Events . | . . . . . . . Feedback Blocked . | . . . . . . . Robot Schematics Acquired . | . . . . . . . Robots Built . | . . . . . . . Authchips . | . . . . . . . Time . | . . . . . . . Total Robot Build Rating . | . . . . . . . Part Schematics Acquired . | . . . . . . . Parts Built . | . . . . . . . Authchips . | . . . . . . . Time . | . . . . . . . Total Part Build Rating . | . . . . . . . Part Studies Acquired . | . . . . . . . Parts Repaired . | . . . . . . . Time . | . . . . . . . Parts Recycled . | . . . . . . . Recycled Matter . | . . . . . . . Retrieved Matter . | . . . . . . . Retrieved Components . | . . . . . . . Parts Scanalyzed . | . . . . . . . Part Schematics Acquired . | . . . . . . . Parts Damaged . | . . . . . . . Bothacking | -11 -10 -10 -9 -9 -9 -9 ------------ Run | Yrd Mat Min Mat Sto Rec Scr Used RIF Installer . | . . . . . . . Robots Hacked . | . . . . . . . Non-combat . | . . . . . . . Combat . | . . . . . . . Robot Hacks Applied . | . . . . . . . Relay Couplers Released . | . . . . . . . Fabnet Peak Effective % . | . . . . . . . Robots Rewired . | . . . . . . . Allies Hacked . | . . . . . . . Hacks Repelled . | . . . . . . . Allies | -11 -10 -10 -9 -9 -9 -9 -------- Run | Yrd Mat Min Mat Sto Rec Scr Total Allies 5 | . . 5 . . . . Largest Group 4 | . . 4 4 . . . Highest-Rated Group 71 | . . 71 71 . . . Highest-Rated Ally 31 | . . 31 31 . . . Total Orders . | . . . . . . . Ally Attacks 26 | . . 5 21 . . . Total Damage 360 | . . 82 278 . . . Kills 9 | . . 1 8 . . . Allies Corrupted . | . . . . . . . Allies Melted 1 | . . . . . . 1 Intel | -11 -10 -10 -9 -9 -9 -9 ------- Run | Yrd Mat Min Mat Sto Rec Scr Active Infowar (turns) 1969 | 49 366 458 241 142 114 599 Seismic 1969 | 49 366 458 241 142 114 599 Robot Analysis Total . | . . . . . . . Derelict Logs Recovered . | . . . . . . . Drone Launches . | . . . . . . . Drone Recoveries . | . . . . . . . Exploration | -11 -10 -10 -9 -9 -9 -9 ------------- Run | Yrd Mat Min Mat Sto Rec Scr Turns Passed 2611 | 156 366 458 241 142 114 1134 Spaces Moved 2245 | 119 292 304 154 148 269 959 Core 162 | 2 . . . . 120 40 Treads . | . . . . . . . Legs . | . . . . . . . Wheels 1727 | 117 292 304 95 . . 919 Hover . | . . . . . . . Flight 356 | . . . 59 148 149 . Fastest Speed 26 | 50 80 140 26 29 35 50 Average Speed 101 | 79 98 140 98 69 41 115 Slowest Speed 200 | 80 140 140 200 115 50 130 Overloaded Moves . | . . . . . . . Propulsion Burnouts . | . . . . . . . Robots Hopped 4 | . . . 1 . 3 . Potential Cave-ins . | . . . . . . . Cave-ins Triggered . | . . . . . . . Exploration Rate (%) 41 | 5 34 64 19 32 62 75 Regions Visited 6 Branch Regions 4 Pre-discovered Areas . | . . . . . . . Known Exits Taken . | . . . . . . . Unknown Exits Taken 6 | 1 1 1 1 1 1 . Scrap Searched 4 | . . 1 . . . 3 Spaces Dug . | . . . . . . . Terrain Destroyed 119 | . . . 40 50 . 29 Melee . | . . . . . . . Projectile . | . . . . . . . AOE 119 | . . . 40 50 . 29 Terrain Rammed . | . . . . . . . Walls Destroyed . | . . . . . . . Machines Disabled . | . . . . . . . Actions | -11 -10 -10 -9 -9 -9 -9 --------- Run | Yrd Mat Min Mat Sto Rec Scr Total 2435 | 148 349 317 205 170 267 979 Wait 48 | . 31 . 14 1 2 . Move 2231 | 118 291 303 151 147 262 959 Hop 4 | . . . 1 . 3 . Pick Up 23 | 6 10 . 1 . . 6 Fast Attach 22 | 7 2 . 2 4 . 7 Attach 8 | . . 1 7 . . . Detach 2 | . . . . 1 . 1 Swap 3 | . 1 1 . . . 1 Drop 13 | 1 1 1 6 3 . 1 Fire 78 | 16 12 11 23 14 . 2 Melee 2 | . . . . . . 2 Ram 1 | . 1 . . . . . Kick . | . . . . . . . Crush . | . . . . . . . Escape Stasis . | . . . . . . . Rewire . | . . . . . . . Trap . | . . . . . . . Miscellaneous . | . . . . . . . Route ------- -11/Scrapyard -10/Materials -10/Mines (discovered 2 exits: *Mat x2) -9/Materials -9/Storage -9/Recycling (discovered 2 exits: [*Fac] / *Scr) -9/Scraptown (discovered 2 exits: [*Fac x2]) History --------- Turn | Location | Event 14 | -11/Scrapyard | Discovered new exit (range 15) 157 | -11/Scrapyard | Entered Materials 280 | -10/Materials | Discovered new exit (range 7) 310 | -10/Materials | Build established: Mutant 523 | -10/Materials | Entered Mines 523 | -10/Mines | Discovered new exit (range 13) 925 | -10/Mines | Discovered new exit (range 13) 944 | -10/Mines | Assisted by bots powering up and referring to "LRC-V3" 981 | -10/Mines | Entered Materials 981 | -9/Materials | Accompanied by 4 allies 981 | -9/Materials | Evolved 2 slots: Propulsion x2 986 | -9/Materials | Led the pair of lost Derelicts to an unsafe place 1138 | -9/Materials | Discovered new exit (range 10) 1187 | -9/Materials | Lost 3 allies 1204 | -9/Materials | Lost 5 parts (1p2n2w) 1222 | -9/Materials | Entered Storage 1362 | -9/Storage | Used back door to open Recycling access 1362 | -9/Storage | Discovered new exit (range 5) 1364 | -9/Storage | Entered Recycling 1389 | -9/Recycling | Core integrity fell below 50% 1396 | -9/Recycling | Discovered new exit (range 11) 1447 | -9/Recycling | Lost 6 parts (1p3n1u1w) 1456 | -9/Recycling | Scanned before Scraplab entrance 1472 | -9/Recycling | Entered Scraplab 1477 | -9/Recycling | Discovered new exit (range 3) 1478 | -9/Recycling | Entered Scraptown 1703 | -9/Scraptown | Discovered new exit (range 13) 1790 | -9/Scraptown | Heard Great Nut preacher, LISTEN AND RECITE! 1794 | -9/Scraptown | Visited Cave Peace 1822 | -9/Scraptown | Visited Assassins FH 1837 | -9/Scraptown | Visited Red Mages 1878 | -9/Scraptown | Visited TADAMA 1899 | -9/Scraptown | Visited Spacefarers 1933 | -9/Scraptown | Visited Cyclists 1963 | -9/Scraptown | Visited Shadow of the Wyrm 2009 | -9/Scraptown | Visited UFD Registry 2009 | -9/Scraptown | Registered with UFD as "Matrixsourcer" 2064 | -9/Scraptown | Visited A0-MCA Data Center 2072 | -9/Scraptown | Given a B- rating by A0-MCA 2078 | -9/Scraptown | Found A0-MCA's Component Scanner 2104 | -9/Scraptown | Visited Science Guys 2147 | -9/Scraptown | Visited Scrapoid Pod Storage 2153 | -9/Scraptown | Found Scrapoid Pod 2172 | -9/Scraptown | Visited Observation Area 2189 | -9/Scraptown | Visited Junk Cannon Lab 2216 | -9/Scraptown | Found Junk Cannon 2237 | -9/Scraptown | Visited Abandonware Association 2256 | -9/Scraptown | Visited Analyses Database 2278 | -9/Scraptown | Visited Botcube Research 2286 | -9/Scraptown | Found Botcube 2480 | -9/Scraptown | Met Optimus 2480 | -9/Scraptown | Accepted into 0bPrime 2540 | -9/Scraptown | Found Scrap Suit 2553 | -9/Scraptown | Discovered new exit (range 5) 2590 | -9/Scraptown | Civil war broke out across Scraptown 2600 | -9/Scraptown | Core integrity fell below 20% 2612 | -9/Scraptown | Destroyed by 6X-NI5(E) with Barrage Gun Last Messages --------------- 02596_ Slug penetrates Wall. 02598_ 7B-WWO(g) destroyed. 02598_ DK-VEI(E) destroyed. 02598_ C-Scrubber disabled. 02599_ Critical hit (Burn: +50). 02600_ 5H-C2O(j) heat spikes uncontrollably. 02600_ 5H-C2O(j) destroyed. 02600_ 1A-T9V(h) destroyed. 02600_ 13-V1C(j) destroyed. 02601_ 6J-57K(E) destroyed. 02602_ 2E-JC2(j) destroyed. 02604_ Acquired 41 matter. 02605_ 6X-NI5(E): "We will win here, and we will win in 0b1. Believe it." 02606_ The unstable cave ceiling collapses. 02606_ Scrap Suit crushed. 02610_ Com. Wheel destroyed. 02611_ 1H-UKG(g) Aluminum Leg severed. 02611_ Imp. Grenade Launcher destroyed. 02611_ Critical hit (Burn: +50). Map ----- +----------------------------------------------------+ | | | | | | | | | | | | | | | | | | | | | ?????????????????????????????????????????????????? | | ?????????????????????????????????????????????????? | | ?????????????????????????????????????????????????? | | ?????????????????????????????????????????????????? | | ?????????????????????????????????????????????????? | | ?????????????????????????????????????????????????? | | ?????????????????????????????????????????????????? | | ?????????????????????????????????????????????????? | | ?????????????????????????????????????????????????? | | ?????????????????????????????????????????????????? | | ?????????????????????########????????????????????? | | ????????????????????## ##???????????????????? | | ????????????????????# ==!*= ##??????????????????? | | ###########???####??# [!=%#= #??????????????????? | | ##""|##"""#??## ##?# =*jg!!!##??????????????????? | | ##""|##! "#### ####==%@[*! #??????????????????? | | =%![=![%! ##??????????????????? | | E!!*[!%==! #???????????????????? | | ############## #### # #???????????????????? | | ?????????????## ##??#########???????????????????? | | ??????????????# ########????????????????????????? | | ??????????????# #""""""#????????????????????????? | | ??????????????# #""""""#????????????????????????? | | ????#?????????# #"" "#????????????????????????? | | ????# ??????? # #"" "#????????????????????????? | | ##??# ????? # #"" "#????????????????????????? | | ""#?# "???" # #"" "#????????????????????????? | | ""#?# "???" # #" "#????????????????????????? | | ""#?# "###" # #""" "###"##???????????????????? | | ""#?# """"" # # #???????????????????? | | ??? # # #???????????????????? | | ??????? ??# # #???????????????????? | | ????????# #???# ## ##########???????????????????? | | ######### ##### ## ##########???????????????????? | | """"""""" """"" "" "## """"????????????????????? | | "## ?????????????????????? | | "## "??????????????????????? | | "## "??????????????????????? | | "## "??????????????????????? | | "??????????????????????? | +----------------------------------------------------+ Best States ------------- Heat Dissipation 28 Energy Generation 10 Energy Capacity 250 Matter Stores 300 Matter Capacity 300 Sight Range 16 Terrain Scan Density 10 Armor Coverage 225 Evasion (%) 64 Item Schematics ----------------- None Robot Schematics ------------------ None Fabricated ------------ Nothing Repaired ---------- Nothing Studied --------- None Alien Tech Used ----------------- None Achievements -------------- None Challenges ------------ None Game ------ Seed PoweredHackingGreatsword Manual? 0 Play Time 00:20:16 Cumulative 173.5 hours Start 2026.08.25 @ 18:33:33 End 2026.08.25 @ 18:59:07 Sessions 1 Manual Loads 0 Difficulty Rogue Special Mode None Game No. 345 Rogue 345 Adventurer 0 Explorer 0 Win Type - Total 2 Types 2/0/0/0/0/0/0/0/0/0 Lore% 57 Gallery% 59 Achievement% 45 Wizard Run 0 Options --------- Layout 2 ASCII 0 Keyboard 1 Movement Arrows Keybinds 0 Fullscreen 1 Font 24/Smallcaps Map View 50x44 Zoom Use 0% Tactical HUD 1 Map Filters NONE Filters NONE Steam 1 RUN: daf0d247-97d3-47ae-913c-58f810f27b5c